[Event "FIDE Grand Swiss 2023"]
[Site "Villa Marina, Douglas, Isle of Man"]
[Date "2023.11.03"]
[Round "9.33"]
[White "Durarbayli, Vasif"]
[Black "Bartel, Mateusz"]
[Result "0-1"]
[WhiteElo "2625"]
[BlackElo "2651"]
[EventDate "2023.10.25"]
[ECO "C02"]
[PlyCount "162"]
[BlackClock "00:35:48"]
[BlackFideId "1112635"]
[TimeControl "40/100 + 20/50 + 15 + 30s/move"]
[WhiteClock "00:07:16"]
[WhiteFideId "13402935"]

1.e4 {[%clk 01:40:54][%emt 00:00:05]} 1...e6 {[%clk 01:40:56][%emt 00:00:05]} 
2.d4 {[%clk 01:41:14][%emt 00:00:11]} 2...d5 {[%clk 01:41:22][%emt 00:00:04]} 
3.e5 {[%clk 01:41:37][%emt 00:00:06]} 3...c5 {[%clk 01:41:48][%emt 00:00:04]} 
4.c3 {[%clk 01:41:59][%emt 00:00:09]} 4...Nc6 {[%clk 01:42:15][%emt 00:00:02]} 
5.Nf3 {[%clk 01:42:14][%emt 00:00:16]} 5...Bd7 {[%clk 01:42:40][%emt 00:00:04]} 
6.Be2 {[%clk 01:42:06][%emt 00:00:36]} 6...Nge7 {[%clk 01:43:04][%emt 00:00:08]} 
7.Nbd2 {[%clk 01:35:14][%emt 00:07:22]} 7...Ng6 {[%clk 01:33:49][%emt 00:09:45]} 
8.h4 {[%clk 01:32:19][%emt 00:03:25]} 8...cxd4 {[%clk 01:23:39][%emt 00:10:40]} 
9.cxd4 {[%clk 01:32:40][%emt 00:00:08]} 9...Nf4 {[%clk 01:23:59][%emt 00:00:11]} 
10.Bf1 {[%clk 01:32:04][%emt 00:01:07]} 10...Qa5 {[%clk 01:24:23][%emt
00:00:06]} 11.a3 {[%clk 01:05:28][%emt 00:27:06]} 11...Nb4 {[%clk 01:21:29][%emt
00:03:23]} 12.Rb1 {[%clk 01:05:41][%emt 00:00:18]} 12...Nbd3+ {[%clk
01:01:03][%emt 00:20:55]} 13.Bxd3 {[%clk 01:05:56][%emt 00:00:16]} 13...Nxd3+ 
{[%clk 01:01:29][%emt 00:00:03]} 14.Kf1 {[%clk 01:06:23][%emt 00:00:03]} 
14...Ba4 {[%clk 00:54:27][%emt 00:07:31]} 15.b3 {[%clk 01:05:00][%emt 00:01:54]} 
15...Bb5 {[%clk 00:54:45][%emt 00:00:12]} 16.Kg1 {[%clk 01:05:24][%emt
00:00:06]} 16...Bxa3 {[%clk 00:50:49][%emt 00:04:27]} 17.Bxa3 {[%clk
00:58:49][%emt 00:07:05]} 17...Qxa3 {[%clk 00:50:06][%emt 00:01:13]} 18.Qe2 
{[%clk 00:59:14][%emt 00:00:05]} 18...a6 {[%clk 00:47:50][%emt 00:02:46]} 
19.Qe3 {[%clk 00:57:00][%emt 00:02:44]} 19...Qe7 {[%clk 00:46:48][%emt
00:01:31]} 20.h5 {[%clk 00:52:09][%emt 00:05:22]} 20...h6 {[%clk 00:47:00][%emt
00:00:17]} 21.Rh3 {[%clk 00:52:29][%emt 00:00:10]} 21...O-O-O {[%clk
00:46:47][%emt 00:00:44]} 22.Rg3 {[%clk 00:51:08][%emt 00:01:51]} 22...Rhg8 
{[%clk 00:46:30][%emt 00:00:46]} 23.Rd1 {[%clk 00:44:57][%emt 00:06:41]} 
23...Kb8 {[%clk 00:44:49][%emt 00:02:11]} 24.Nb1 {[%clk 00:44:29][%emt
00:00:58]} 24...Nb4 {[%clk 00:45:09][%emt 00:00:09]} 25.Nc3 {[%clk
00:44:36][%emt 00:00:24]} 25...Bd7 {[%clk 00:45:32][%emt 00:00:07]} 26.Rc1 
{[%clk 00:40:19][%emt 00:04:47]} 26...Rc8 {[%clk 00:45:18][%emt 00:00:44]} 
27.Ne2 {[%clk 00:39:39][%emt 00:01:10]} 27...Rxc1+ {[%clk 00:44:21][%emt
00:01:27]} 28.Qxc1 {[%clk 00:39:08][%emt 00:01:01]} 28...Bb5 {[%clk
00:44:42][%emt 00:00:08]} 29.Nc3 {[%clk 00:38:31][%emt 00:01:08]} 29...Bd3 
{[%clk 00:44:33][%emt 00:00:39]} 30.Na4 {[%clk 00:37:49][%emt 00:01:13]} 
30...Bf5 {[%clk 00:33:29] [%emt 00:11:33]} 31.Ne1 {[%clk 00:31:29] [%emt
00:06:51]} 31...Nc6 {[%clk 00:31:36][%emt 00:02:23]} 32.Nf3 {[%clk
00:30:17][%emt 00:01:42]} 32...Nb4 {[%clk 00:33:29][%emt 00:11:33]} 33.Ne1 
{[%clk 00:31:29][%emt 00:06:51]} 33...Rc8 {[%clk 00:22:32][%emt 00:05:30]} 
34.Qd2 {[%clk 00:29:34][%emt 00:01:35]} 34...Nc2 {[%clk 00:20:38][%emt
00:02:23]} 35.Rxg7 {[%clk 00:25:49][%emt 00:04:15]} 35...Nxe1 {[%clk
00:11:34][%emt 00:09:34]} 36.Qxe1 {[%clk 00:24:10][%emt 00:02:09]} 36...Ka7 
{[%clk 00:12:03][%emt 00:00:02]} 37.Nc5 {[%clk 00:18:04][%emt 00:06:35]} 
37...b6 {[%clk 00:12:16][%emt 00:00:17]} 38.Na4 {[%clk 00:18:27][%emt 00:00:07]} 
38...Qf8 {[%clk 00:08:18][%emt 00:04:28]} 39.Rg3 {[%clk 00:18:46][%emt
00:00:11]} 39...a5 {[%clk 00:08:44][%emt 00:00:04]} 40.Qe3 {[%clk 00:12:44][%emt
00:06:32]} 40...Rc7 {[%clk 00:04:48][%emt 00:04:26]} 41.Kh2 {[%clk
00:04:41][%emt 00:08:33]} 41...Kb7 {[%clk 00:50:27][%emt 00:04:52]} 42.Nc3 
{[%clk 00:46:10][%emt 00:09:00]} 42...Qb4 {[%clk 00:49:43][%emt 00:01:14]} 
43.Ne2 {[%clk 00:45:02][%emt 00:01:38]} 43...Qe1 {[%clk 00:48:54][%emt
00:01:19]} 44.Rf3 {[%clk 00:35:46][%emt 00:09:47]} 44...Bg4 {[%clk
00:43:44][%emt 00:05:39]} 45.Ng3 {[%clk 00:35:23][%emt 00:00:53]} 45...Qxe3 
{[%clk 00:44:08][%emt 00:00:07]} 46.Rxe3 {[%clk 00:35:52][%emt 00:00:02]} 
46...Bd1 {[%clk 00:44:32][%emt 00:00:05]} 47.f3 {[%clk 00:29:58][%emt 00:06:25]} 
47...b5 {[%clk 00:44:49][%emt 00:00:12]} 48.Nh1 {[%clk 00:30:10][%emt 00:00:18]} 
48...b4 {[%clk 00:41:53][%emt 00:03:26]} 49.Nf2 {[%clk 00:30:33][%emt 00:00:07]} 
49...Bc2 {[%clk 00:42:18][%emt 00:00:05]} 50.Ng4 {[%clk 00:30:32][%emt
00:00:31]} 50...a4 {[%clk 00:42:41][%emt 00:00:08]} 51.bxa4 {[%clk
00:30:31][%emt 00:00:31]} 51...b3 {[%clk 00:41:36][%emt 00:01:34]} 52.Rxb3+ 
{[%clk 00:30:17][%emt 00:00:44]} 52...Bxb3 {[%clk 00:42:01][%emt 00:00:05]} 
53.Nxh6 {[%clk 00:30:44][%emt 00:00:02]} 53...Bxa4 {[%clk 00:41:59][%emt
00:00:33]} 54.Kg3 {[%clk 00:28:12][%emt 00:03:02]} 54...Kc8 {[%clk
00:41:38][%emt 00:00:51]} 55.Ng8 {[%clk 00:24:55][%emt 00:03:47]} 55...Kd8 
{[%clk 00:41:06][%emt 00:01:01]} 56.h6 {[%clk 00:25:13][%emt 00:00:13]} 
56...Bc2 {[%clk 00:41:32][%emt 00:00:04]} 57.Kf4 {[%clk 00:25:00][%emt
00:00:43]} 57...Rc8 {[%clk 00:41:06][%emt 00:00:56]} 58.g4 {[%clk 00:21:55][%emt
00:03:35]} 58...Rc4 {[%clk 00:32:56][%emt 00:08:40]} 59.Ke3 {[%clk
00:18:07][%emt 00:04:18]} 59...Bg6 {[%clk 00:32:27][%emt 00:00:58]} 60.Nf6 
{[%clk 00:16:27][%emt 00:02:11]} 60...Rc2 {[%clk 00:32:16][%emt 00:00:41]} 
61.Kf4 {[%clk 00:15:29][%emt 00:01:29]} 61...Ke7 {[%clk 00:31:31][%emt
00:01:13]} 62.Kg5 {[%clk 00:14:43][%emt 00:01:17]} 62...Kf8 {[%clk
00:31:31][%emt 00:00:30]} 63.f4 {[%clk 00:14:51][%emt 00:00:22]} 63...Rg2 
{[%clk 00:31:41][%emt 00:00:20]} 64.Kh4 {[%clk 00:10:22][%emt 00:04:59]} 
64...Bb1 {[%clk 00:31:33][%emt 00:00:38]} 65.Kg5 {[%clk 00:10:07][%emt
00:00:46]} 65...Rd2 {[%clk 00:30:31][%emt 00:01:32]} 66.Nd7+ {[%clk
00:07:50][%emt 00:02:47]} 66...Kg8 {[%clk 00:29:19][%emt 00:01:41]} 67.Nf6+ 
{[%clk 00:08:16][%emt 00:00:04]} 67...Kh8 {[%clk 00:29:44][%emt 00:00:05]} 
68.Ne8 {[%clk 00:08:42][%emt 00:00:04]} 68...Rxd4 {[%clk 00:29:34][%emt
00:00:39]} 69.f5 {[%clk 00:07:30][%emt 00:01:43]} 69...Ra4 {[%clk 00:26:12][%emt
00:03:52]} 70.Nd6 {[%clk 00:05:07][%emt 00:02:53]} 70...Kg8 {[%clk
00:23:09][%emt 00:03:33]} 71.h7+ {[%clk 00:01:33][%emt 00:04:04]} 71...Kxh7 
{[%clk 00:23:21][%emt 00:00:18]} 72.Nxf7 {[%clk 00:02:01][%emt 00:00:02]} 
72...d4 {[%clk 00:23:42][%emt 00:00:09]} 73.fxe6 {[%clk 00:09:14][%emt
00:08:17]} 73...Bg6 {[%clk 00:38:48][%emt 00:00:24]} 74.Kf6 {[%clk
00:07:26][%emt 00:02:18]} 74...d3 {[%clk 00:38:53][%emt 00:00:25]} 75.Ng5+ 
{[%clk 00:07:20][%emt 00:00:36]} 75...Kh6 {[%clk 00:35:40][%emt 00:03:42]} 
76.Nf7+ {[%clk 00:06:21][%emt 00:01:29]} 76...Bxf7 {[%clk 00:36:05][%emt
00:00:05]} 77.g5+ {[%clk 00:06:26][%emt 00:00:26]} 77...Kh7 {[%clk
00:36:30][%emt 00:00:05]} 78.exf7 {[%clk 00:06:51][%emt 00:00:05]} 78...Rf4+ 
{[%clk 00:36:55][%emt 00:00:04]} 79.Ke7 {[%clk 00:07:14][%emt 00:00:07]} 
79...Kg7 {[%clk 00:35:19][%emt 00:02:07]} 80.e6 {[%clk 00:07:04][%emt 00:00:40]} 
80...d2 {[%clk 00:35:44][%emt 00:00:05]} 81.g6 {[%clk 00:07:32][%emt 00:00:02]} 
81...Rf6 {[%clk 00:35:48][%emt 00:00:26]} 0-1

[Event "FIDE Grand Swiss 2023"]
[Site "Villa Marina, Douglas, Isle of Man"]
[Date "2023.11.03"]
[Round "9.34"]
[White "Narayanan.S.L"]
[Black "Bachmann, Axel"]
[Result "1-0"]
[WhiteElo "2651"]
[BlackElo "2604"]
[EventDate "2023.10.25"]
[ECO "E11"]
[PlyCount "89"]
[BlackClock "00:59:57"]
[BlackFideId "3700488"]
[TimeControl "40/100 + 20/50 + 15 + 30s/move"]
[WhiteClock "00:47:09"]
[WhiteFideId "5058422"]

1.d4 {[%clk 01:40:17][%emt 00:00:42]} 1...Nf6 {[%clk 01:40:27][%emt 00:00:33]} 
2.c4 {[%clk 01:40:33][%emt 00:00:14]} 2...e6 {[%clk 01:40:53][%emt 00:00:04]} 
3.Nf3 {[%clk 01:40:56][%emt 00:00:07]} 3...Bb4+ {[%clk 01:39:22][%emt 00:02:02]} 
4.Bd2 {[%clk 01:41:11][%emt 00:00:15]} 4...c5 {[%clk 01:37:52][%emt 00:02:00]} 
5.Bxb4 {[%clk 01:41:14][%emt 00:00:27]} 5...cxb4 {[%clk 01:38:16][%emt
00:00:06]} 6.e3 {[%clk 01:41:36][%emt 00:00:08]} 6...b6 {[%clk 01:38:17][%emt
00:00:29]} 7.Bd3 {[%clk 01:41:48][%emt 00:00:18]} 7...Bb7 {[%clk 01:38:38][%emt
00:00:09]} 8.Nbd2 {[%clk 01:41:23][%emt 00:00:55]} 8...O-O {[%clk 01:34:09][%emt
00:04:58]} 9.O-O {[%clk 01:40:03][%emt 00:01:49]} 9...a5 {[%clk 01:23:19][%emt
00:11:21]} 10.e4 {[%clk 01:39:52][%emt 00:00:41]} 10...d6 {[%clk 01:23:37][%emt
00:00:13]} 11.Re1 {[%clk 01:39:40][%emt 00:00:42]} 11...e5 {[%clk 01:21:23][%emt
00:02:44]} 12.Nf1 {[%clk 01:38:49][%emt 00:01:19]} 12...Nc6 {[%clk
01:20:44][%emt 00:01:11]} 13.Bc2 {[%clk 01:29:41][%emt 00:09:37]} 13...Re8 
{[%clk 01:05:23][%emt 00:15:51]} 14.Ng3 {[%clk 01:23:48][%emt 00:06:22]} 
14...Qc7 {[%clk 01:02:31][%emt 00:03:23]} 15.Ba4 {[%clk 01:12:57][%emt
00:11:21]} 15...Red8 {[%clk 01:01:32][%emt 00:01:29]} 16.Qd2 {[%clk
01:08:32][%emt 00:04:55]} 16...Ne7 {[%clk 00:53:19][%emt 00:08:44]} 17.Rad1 
{[%clk 01:05:18][%emt 00:03:44]} 17...h6 {[%clk 00:50:47][%emt 00:03:03]} 18.b3 
{[%clk 00:59:34][%emt 00:06:13]} 18...Ng6 {[%clk 00:48:06][%emt 00:03:11]} 
19.h3 {[%clk 00:57:26][%emt 00:02:38]} 19...Rab8 {[%clk 00:47:28][%emt
00:01:08]} 20.Qe3 {[%clk 00:55:31][%emt 00:02:25]} 20...Nf4 {[%clk
00:42:43][%emt 00:05:14]} 21.Rd2 {[%clk 00:54:52][%emt 00:01:09]} 21...Ne6 
{[%clk 00:41:30][%emt 00:01:42]} 22.Red1 {[%clk 00:52:30][%emt 00:02:53]} 
22...Ba8 {[%clk 00:37:33][%emt 00:04:28]} 23.Bb5 {[%clk 00:44:03][%emt
00:08:57]} 23...Bb7 {[%clk 00:36:46][%emt 00:01:17]} 24.Ra1 {[%clk
00:42:11][%emt 00:02:22]} 24...Kf8 {[%clk 00:24:56][%emt 00:12:20]} 25.a3 
{[%clk 00:36:59][%emt 00:05:42]} 25...bxa3 {[%clk 00:23:39][%emt 00:01:47]} 
26.Rxa3 {[%clk 00:37:20][%emt 00:00:08]} 26...exd4 {[%clk 00:23:11][%emt
00:00:58]} 27.Nxd4 {[%clk 00:37:26][%emt 00:00:24]} 27...Nxd4 {[%clk
00:23:36][%emt 00:00:06]} 28.Rxd4 {[%clk 00:37:35][%emt 00:00:21]} 28...Bc6 
{[%clk 00:22:56][%emt 00:01:09]} 29.Bxc6 {[%clk 00:33:54][%emt 00:04:12]} 
29...Qxc6 {[%clk 00:23:22][%emt 00:00:04]} 30.Nf5 {[%clk 00:25:07][%emt
00:09:17]} 30...Rd7 {[%clk 00:22:57][%emt 00:00:55]} 31.Ra1 {[%clk
00:21:55][%emt 00:03:41]} 31...Re8 {[%clk 00:14:30][%emt 00:08:57]} 32.Qg3 
{[%clk 00:18:17][%emt 00:04:08]} 32...g5 {[%clk 00:13:41][%emt 00:01:19]} 
33.Qc3 {[%clk 00:17:11][%emt 00:01:36]} 33...Qc5 {[%clk 00:14:06][%emt
00:00:05]} 34.Rad1 {[%clk 00:12:25]} 34...Qe5 {[%clk 00:14:16][%emt 00:00:21]} 
35.f3 {[%clk 00:12:15][%emt 00:00:39]} 35...Re6 {[%clk 00:13:39][%emt 00:01:08]} 
36.Qd2 {[%clk 00:12:07][%emt 00:00:37]} 36...Nh5 {[%clk 00:12:54][%emt
00:01:15]} 37.Rd5 {[%clk 00:11:33][%emt 00:01:03]} 37...Qf6 {[%clk
00:13:02][%emt 00:00:23]} 38.Rb5 {[%clk 00:10:20][%emt 00:01:43]} 38...Rb7 
{[%clk 00:11:22][%emt 00:02:11]} 39.Qf2 {[%clk 00:09:47][%emt 00:01:01]} 
39...Nf4 {[%clk 00:10:59][%emt 00:00:55]} 40.Rxb6 {[%clk 00:09:10][%emt
00:01:06]} 40...Rxb6 {[%clk 00:11:25][%emt 00:00:04]} 41.Qxb6 {[%clk
00:09:33][%emt 00:00:08]} 41...Kg8 {[%clk 00:11:51][%emt 00:00:03]} 42.Qxa5 
{[%clk 00:02:33][%emt 00:07:31]} 42...Qb2 {[%clk 00:11:43][%emt 00:00:37]} 
43.Rd2 {[%clk 00:00:34][%emt 00:02:29]} 43...Qc1+ {[%clk 00:09:38][%emt
00:02:36]} 44.Kh2 {[%clk 00:49:37][%emt 00:01:26]} 44...Kh7 {[%clk
01:00:04][%emt 00:00:04]} 45.Qa7 {[%clk 00:47:09] [%emt 00:02:58]} 1-0

[Event "FIDE Grand Swiss 2023"]
[Site "Villa Marina, Douglas, Isle of Man"]
[Date "2023.11.03"]
[Round "9.35"]
[White "Kuybokarov, Temur"]
[Black "Gukesh, D"]
[Result "1-0"]
[WhiteElo "2584"]
[BlackElo "2758"]
[EventDate "2023.10.25"]
[ECO "C60"]
[PlyCount "102"]
[BlackClock "00:35:09"]
[BlackFideId "46616543"]
[TimeControl "40/100 + 20/50 + 15 + 30s/move"]
[WhiteClock "00:18:03"]
[WhiteFideId "14203049"]

1.e4 {[%clk 01:40:50][%emt 00:00:09]} 1...e5 {[%clk 01:40:53][%emt 00:00:07]} 
2.Nf3 {[%clk 01:41:03][%emt 00:00:17]} 2...Nc6 {[%clk 01:41:16][%emt 00:00:07]} 
3.Bb5 {[%clk 01:41:09][%emt 00:00:24]} 3...g6 {[%clk 01:41:38][%emt 00:00:08]} 
4.O-O {[%clk 01:35:01][%emt 00:06:38]} 4...Bg7 {[%clk 01:41:58][%emt 00:00:10]} 
5.c3 {[%clk 01:34:43][%emt 00:00:49]} 5...a6 {[%clk 01:42:19][%emt 00:00:09]} 
6.Ba4 {[%clk 01:28:55][%emt 00:06:18]} 6...b5 {[%clk 01:42:34][%emt 00:00:14]} 
7.Bb3 {[%clk 01:28:32][%emt 00:00:53]} 7...Nge7 {[%clk 01:42:00][%emt 00:01:04]} 
8.d4 {[%clk 01:28:15][%emt 00:00:47]} 8...exd4 {[%clk 01:42:19][%emt 00:00:11]} 
9.cxd4 {[%clk 01:28:33][%emt 00:00:11]} 9...O-O {[%clk 01:42:42][%emt 00:00:07]} 
10.d5 {[%clk 01:27:23][%emt 00:01:41]} 10...Na5 {[%clk 01:43:05][%emt 00:00:06]} 
11.Bd2 {[%clk 01:27:19][%emt 00:00:35]} 11...Nxb3 {[%clk 01:43:26][%emt
00:00:10]} 12.Qxb3 {[%clk 01:27:31][%emt 00:00:17]} 12...c5 {[%clk
01:43:47][%emt 00:00:09]} 13.dxc6 {[%clk 01:15:27][%emt 00:12:34]} 13...dxc6 
{[%clk 01:39:13][%emt 00:05:04]} 14.Bc3 {[%clk 01:12:27][%emt 00:03:30]} 
14...Bxc3 {[%clk 01:31:37][%emt 00:08:06]} 15.Qxc3 {[%clk 01:06:40][%emt
00:06:17]} 15...Qb6 {[%clk 01:31:35][%emt 00:00:32]} 16.Qf6 {[%clk
00:57:55][%emt 00:09:15]} 16...Qc7 {[%clk 01:30:23][%emt 00:01:42]} 17.Nc3 
{[%clk 00:56:55][%emt 00:01:30]} 17...c5 {[%clk 01:20:52][%emt 00:10:01]} 
18.Ne5 {[%clk 00:45:57][%emt 00:11:28]} 18...b4 {[%clk 01:06:37][%emt 00:14:46]} 
19.Nd5 {[%clk 00:44:46][%emt 00:01:40]} 19...Nxd5 {[%clk 01:07:00][%emt
00:00:07]} 20.exd5 {[%clk 00:45:10][%emt 00:00:06]} 20...Bb7 {[%clk
01:04:14][%emt 00:03:17]} 21.Rad1 {[%clk 00:39:26][%emt 00:06:12]} 21...Qd8 
{[%clk 01:03:07][%emt 00:01:38]} 22.Qf3 {[%clk 00:36:19][%emt 00:03:37]} 
22...Qc7 {[%clk 00:56:53][%emt 00:06:44]} 23.Qg3 {[%clk 00:28:40][%emt
00:08:09]} 23...Qd6 {[%clk 00:56:27][%emt 00:00:57]} 24.f4 {[%clk 00:25:37][%emt
00:03:32]} 24...Rad8 {[%clk 00:44:48][%emt 00:12:09]} 25.Nc4 {[%clk
00:22:01][%emt 00:04:06]} 25...Qf6 {[%clk 00:44:21][%emt 00:00:58]} 26.d6 
{[%clk 00:22:02][%emt 00:00:29]} 26...Rfe8 {[%clk 00:32:54][%emt 00:11:57]} 
27.Qf2 {[%clk 00:18:57][%emt 00:03:35]} 27...Qf5 {[%clk 00:24:35][%emt
00:08:48]} 28.d7 {[%clk 00:17:22][%emt 00:02:05]} 28...Rf8 {[%clk 00:17:41][%emt
00:07:25]} 29.Rd6 {[%clk 00:16:01][%emt 00:01:51]} 29...Rxd7 {[%clk
00:15:06][%emt 00:03:05]} 30.Ne3 {[%clk 00:15:50][%emt 00:00:41]} 30...Rxd6 
{[%clk 00:15:34][%emt 00:00:02]} 31.Nxf5 {[%clk 00:16:14][%emt 00:00:05]} 
31...gxf5 {[%clk 00:16:00][%emt 00:00:04]} 32.Qxc5 {[%clk 00:12:18][%emt
00:04:26]} 32...Rd2 {[%clk 00:16:13][%emt 00:00:17]} 33.Re1 {[%clk
00:11:44][%emt 00:01:04]} 33...Rxg2+ {[%clk 00:12:49][%emt 00:03:54]} 34.Kf1 
{[%clk 00:12:10][%emt 00:00:03]} 34...Rxh2 {[%clk 00:13:04][%emt 00:00:17]} 
35.Qxf5 {[%clk 00:10:55][%emt 00:01:45]} 35...Rc8 {[%clk 00:11:30][%emt
00:02:03]} 36.Qd7 {[%clk 00:08:50][%emt 00:02:35]} 36...Rh1+ {[%clk
00:07:42][%emt 00:04:18]} 37.Ke2 {[%clk 00:09:14][%emt 00:00:06]} 37...Rc2+ 
{[%clk 00:07:59][%emt 00:00:14]} 38.Kd1 {[%clk 00:09:39][%emt 00:00:04]} 
38...Rxe1+ {[%clk 00:08:17][%emt 00:00:12]} 39.Kxe1 {[%clk 00:06:19][%emt
00:03:50]} 39...Bc8 {[%clk 00:07:37][%emt 00:01:10]} 40.Qd8+ {[%clk
00:04:09][%emt 00:02:40]} 40...Kg7 {[%clk 00:08:05][%emt 00:00:02]} 41.Qg5+ 
{[%clk 00:03:26][%emt 00:01:12]} 41...Kf8 {[%clk 00:05:11][%emt 00:03:24]} 
42.f5 {[%clk 00:28:48][%emt 00:25:10]} 42...Rc6 {[%clk 00:48:33][%emt 00:07:08]} 
43.Qd8+ {[%clk 00:24:28][%emt 00:04:49]} 43...Kg7 {[%clk 00:48:17][%emt
00:00:46]} 44.Qd5 {[%clk 00:23:16][%emt 00:01:42]} 44...Rf6 {[%clk
00:32:27][%emt 00:16:20]} 45.Qg2+ {[%clk 00:22:22][%emt 00:01:24]} 45...Kh6 
{[%clk 00:32:52][%emt 00:00:06]} 46.Qd2+ {[%clk 00:22:35][%emt 00:00:16]} 
46...Kh5 {[%clk 00:33:17][%emt 00:00:06]} 47.Qd1+ {[%clk 00:22:53][%emt
00:00:10]} 47...Kg5 {[%clk 00:33:29][%emt 00:00:20]} 48.Qc1+ {[%clk
00:23:17][%emt 00:00:06]} 48...Kxf5 {[%clk 00:33:55][%emt 00:00:04]} 49.Qxc8+ 
{[%clk 00:23:41][%emt 00:00:05]} 49...Re6+ {[%clk 00:34:16][%emt 00:00:09]} 
50.Kf2 {[%clk 00:20:19][%emt 00:03:52]} 50...Kg6 {[%clk 00:34:42][%emt
00:00:04]} 51.Qg8+ {[%clk 00:19:51][%emt 00:00:57]} 51...Kf6 {[%clk
00:35:09][%emt 00:00:05]} 1-0

[Event "FIDE Grand Swiss 2023"]
[Site "Villa Marina, Douglas, Isle of Man"]
[Date "2023.11.03"]
[Round "9.36"]
[White "Martirosyan, Haik M."]
[Black "Theodorou, Nikolas"]
[Result "1/2-1/2"]
[WhiteElo "2696"]
[BlackElo "2619"]
[EventDate "2023.10.25"]
[ECO "C02"]
[PlyCount "82"]
[BlackClock "00:43:42"]
[BlackFideId "4262875"]
[TimeControl "40/100 + 20/50 + 15 + 30s/move"]
[WhiteClock "00:31:04"]
[WhiteFideId "13306553"]

1.e4 {[%clk 01:40:55][%emt 00:00:04]} 1...e6 {[%clk 01:40:30][%emt 00:00:31]} 
2.d4 {[%clk 01:41:07][%emt 00:00:17]} 2...d5 {[%clk 01:40:55][%emt 00:00:06]} 
3.e5 {[%clk 01:41:22][%emt 00:00:15]} 3...c5 {[%clk 01:41:09][%emt 00:00:15]} 
4.c3 {[%clk 01:41:47][%emt 00:00:06]} 4...Nc6 {[%clk 01:41:32][%emt 00:00:07]} 
5.Nf3 {[%clk 01:42:10][%emt 00:00:07]} 5...Qc7 {[%clk 01:41:58][%emt 00:00:04]} 
6.Be3 {[%clk 01:36:23][%emt 00:06:17]} 6...Bd7 {[%clk 01:24:24][%emt 00:18:05]} 
7.Na3 {[%clk 01:30:46][%emt 00:06:07]} 7...c4 {[%clk 01:23:51][%emt 00:01:03]} 
8.Be2 {[%clk 01:26:08][%emt 00:05:09]} 8...f6 {[%clk 01:11:32][%emt 00:12:47]} 
9.Bf4 {[%clk 01:21:20][%emt 00:05:18]} 9...Qb6 {[%clk 01:02:49][%emt 00:09:13]} 
10.Nc2 {[%clk 01:18:12][%emt 00:03:38]} 10...g5 {[%clk 00:59:19][%emt 00:04:00]} 
11.Be3 {[%clk 01:14:22][%emt 00:04:20]} 11...g4 {[%clk 00:56:59][%emt 00:02:50]} 
12.Nd2 {[%clk 01:12:49][%emt 00:02:03]} 12...Qxb2 {[%clk 00:52:26][%emt
00:05:03]} 13.Rb1 {[%clk 01:06:46][%emt 00:06:33]} 13...Qxc3 {[%clk
00:51:10][%emt 00:01:46]} 14.O-O {[%clk 01:03:33][%emt 00:03:43]} 14...Qa5 
{[%clk 00:45:59][%emt 00:05:42]} 15.Rxb7 {[%clk 01:01:23][%emt 00:02:39]} 
15...f5 {[%clk 00:42:48][%emt 00:03:41]} 16.Nxc4 {[%clk 00:52:23][%emt
00:09:29]} 16...dxc4 {[%clk 00:43:10][%emt 00:00:09]} 17.Bxc4 {[%clk
00:52:43][%emt 00:00:10]} 17...Nge7 {[%clk 00:32:42][%emt 00:10:59]} 18.Bg5 
{[%clk 00:40:18][%emt 00:12:54]} 18...Rg8 {[%clk 00:27:35][%emt 00:05:37]} 
19.Bf6 {[%clk 00:37:48][%emt 00:03:00]} 19...Nd5 {[%clk 00:13:26][%emt
00:14:40]} 20.Bxd5 {[%clk 00:32:05][%emt 00:06:12]} 20...Qxd5 {[%clk
00:13:18][%emt 00:00:38]} 21.Ne3 {[%clk 00:31:59][%emt 00:00:37]} 21...Qxd4 
{[%clk 00:13:05][%emt 00:00:42]} 22.Qc1 {[%clk 00:29:21][%emt 00:03:08]} 
22...Rb8 {[%clk 00:09:36][%emt 00:04:00]} 23.Nxf5 {[%clk 00:17:24][%emt
00:12:26]} 23...Qc5 {[%clk 00:04:37][%emt 00:05:29]} 24.Rxb8+ {[%clk
00:11:56][%emt 00:05:58]} 24...Nxb8 {[%clk 00:05:06][%emt 00:00:02]} 25.Qb1 
{[%clk 00:07:09][%emt 00:05:15]} 25...exf5 {[%clk 00:05:20][%emt 00:00:17]} 
26.Qb3 {[%clk 00:06:43][%emt 00:00:56]} 26...Rg6 {[%clk 00:05:20][%emt
00:00:30]} 27.Qxb8+ {[%clk 00:06:17][%emt 00:00:56]} 27...Qc8 {[%clk
00:03:56][%emt 00:01:55]} 28.Qxa7 {[%clk 00:06:04][%emt 00:00:43]} 28...Bc5 
{[%clk 00:03:20][%emt 00:01:05]} 29.Qa5 {[%clk 00:06:33][%emt 00:00:01]} 
29...g3 {[%clk 00:02:51][%emt 00:00:59]} 30.hxg3 {[%clk 00:06:53][%emt
00:00:11]} 30...Rxg3 {[%clk 00:03:00][%emt 00:00:20]} 31.Rd1 {[%clk
00:06:34][%emt 00:00:49]} 31...Kf7 {[%clk 00:01:41][%emt 00:01:49]} 32.Kf1 
{[%clk 00:04:42][%emt 00:02:23]} 32...Ra3 {[%clk 00:01:01][%emt 00:01:09]} 
33.Qd2 {[%clk 00:04:10][%emt 00:01:02]} 33...Bb5+ {[%clk 00:00:35][%emt
00:00:56]} 34.Kg1 {[%clk 00:04:40][%emt 00:00:01]} 34...Rd3 {[%clk
00:00:58][%emt 00:00:06]} 35.Qc1 {[%clk 00:03:53][%emt 00:01:17]} 35...Rxd1+ 
{[%clk 00:00:56][%emt 00:00:32]} 36.Qxd1 {[%clk 00:04:23]} 36...Qd7 {[%clk
00:00:35][%emt 00:00:51]} 37.Qb3+ {[%clk 00:02:26][%emt 00:02:26]} 37...Kf8 
{[%clk 00:01:03][%emt 00:00:02]} 38.Bg5 {[%clk 00:01:28][%emt 00:01:28]} 
38...Kg7 {[%clk 00:00:44][%emt 00:00:50]} 39.Kh2 {[%clk 00:00:56][%emt
00:01:01]} 39...Qc6 {[%clk 00:00:32][%emt 00:00:42]} 40.Bf6+ {[%clk
00:00:54][%emt 00:00:32]} 40...Kf8 {[%clk 00:00:54][%emt 00:00:08]} 41.Qh3 
{[%clk 00:44:12][%emt 00:07:12]} 41...Qe4 {[%clk 00:43:42][%emt 00:07:42]} 1/2-1/2